bitfinex/quotes_SOLUSD_20240601
["timestamp","ask_amount","ask_price","bid_price","bid_amount"]
[1717214937499,2.2158,166.98,166.97,5.6517612]
[1717214938799,4.4305,167.03,166.97,5.6517612]
[1717214939004,2.2157,166.99,166.97,5.6517612]
[1717214940304,2.2157,166.99,166.98,5.52]
[1717214943009,2.2156,167.0,166.98,5.52]
[1717214945508,2.2157,166.99,166.98,5.52]
[1717214947028,2.2155,167.0,166.98,5.52]
[1717214947190,2.2153,167.02,166.99,5.52]
[1717214947505,2.2153,167.02,166.99,6.6523]
[1717214948203,2.2152,167.03,166.99,6.6523]
[1717214954112,2.2153,167.02,166.99,6.6523]
[1717214955225,2.2152,167.03,166.99,6.6523]
[1717214955717,2.2152,167.03,166.97,6.7840612]
[1717214957017,2.2147,167.07,167.0,60.0]
[1717214957198,4.4268,167.17,167.06,5.52]
[1717214957402,2.2142,167.1,167.08,5.52]
[1717214957623,5.52,167.14,167.08,5.52]
[1717214957938,5.52,167.14,167.07,5.52]
[1717214958115,2.2143,167.1,167.08,5.52]
[1717214958628,2.2143,167.1,167.09,5.52]
[1717214958807,2.2143,167.1,167.04,5.52]
[1717214959010,2.2143,167.1,167.08,5.52]
[1717214959324,2.2143,167.1,167.07,5.52]
[1717214961502,2.2143,167.1,167.07,11.9203]
[1717214961709,5.52,167.14,167.08,5.52]
[1717214962517,2.2141,167.11,167.07,6.4003]
[1717214963313,2.2141,167.11,167.07,11.9203]
[1717214963918,2.2141,167.11,167.08,6.4003]
[1717214964226,2.2141,167.11,167.08,11.9203]
[1717214970534,2.2139,167.12,167.08,6.4003]
[1717214970828,2.2139,167.12,167.09,11.9203]
[1717214971028,2.2138,167.13,167.09,11.9203]
[1717214971412,2.2138,167.13,167.09,6.4003]
[1717214972641,2.2138,167.13,167.1,5.52]
[1717214975121,2.2138,167.13,167.09,6.4003]
[1717214975313,2.2139,167.12,167.09,6.4003]
[1717214980923,2.2139,167.12,167.07,21.3764]
[1717214981232,2.2139,167.12,167.08,6.5369]
[1717214983244,2.2139,167.12,167.08,12.0569]
[1717214984849,2.2138,167.13,167.08,12.0569]
[1717214990847,2.2139,167.12,167.08,6.5369]
[1717214992528,2.2138,167.13,167.08,6.5369]
[1717215002054,2.2139,167.12,167.08,6.5369]
[1717215004960,4.4269,167.16,167.04,6.0334]
[1717215004961,2.2141,167.11,167.04,6.0334]
[1717215005156,2.2142,167.1,167.04,6.0334]
[1717215005369,2.2144,167.09,167.04,6.0334]
[1717215005657,2.2144,167.09,167.04,11.5534]
[1717215006262,2.2144,167.09,167.04,6.0334]
[1717215006555,2.2145,167.08,167.04,6.0334]
[1717215007051,2.2145,167.08,166.99,15.273]
[1717215007052,2.2145,167.08,167.02,5.52]
[1717215007354,2.2146,167.07,167.02,5.52]
[1717215007544,7.7348,167.06,167.0,11.5534]
[1717215008643,5.52,167.06,167.0,11.5534]
[1717215008845,2.2146,167.07,167.0,11.5534]
[1717215009055,7.7346,167.07,167.0,11.5534]
[1717215009354,7.7346,167.07,167.01,5.52]
[1717215009964,7.7346,167.07,167.0,6.0334]
[1717215010141,7.7346,167.07,167.01,5.52]
[1717215010339,2.2147,167.06,167.01,5.52]
[1717215010949,2.2147,167.06,167.0,6.0334]
[1717215011453,2.2147,167.06,167.0,11.5534]
[1717215012154,7.7346,167.07,167.0,11.5534]
[1717215012357,7.7346,167.07,167.01,5.52]
[1717215012943,7.7346,167.07,167.0,6.0334]
[1717215013146,7.7346,167.07,167.01,5.52]
[1717215013954,7.7346,167.07,167.0,6.0334]
[1717215014157,7.7346,167.07,167.01,5.52]
[1717215014856,2.2146,167.07,167.03,5.52]
[1717215015355,2.2145,167.08,167.04,5.52]
[1717215020170,2.2146,167.07,167.04,5.52]
[1717215021266,2.2148,167.06,167.0,66.0334]
[1717215021471,5.52,167.08,167.0,66.0334]
[1717215021780,2.2148,167.06,167.02,5.52]
[1717215022148,5.52,167.09,167.02,5.52]
[1717215022354,2.2147,167.06,167.03,5.52]
[1717215023173,2.2146,167.07,167.03,5.52]
[1717215025772,2.2146,167.07,167.0,66.0334]
[1717215025978,2.2146,167.07,167.03,5.52]
[1717215026354,2.2146,167.07,167.0,66.0334]
[1717215026554,2.2146,167.07,167.03,5.52]
[1717215027080,2.2146,167.07,167.03,11.6382]
[1717215027279,2.2146,167.07,167.04,5.52]
[1717215031085,2.2147,167.06,167.04,5.52]
[1717215031283,2.2147,167.06,167.03,11.6382]
[1717215032383,2.2146,167.07,167.03,11.6382]
[1717215037085,2.2145,167.08,167.03,11.6382]
[1717215037264,2.2145,167.08,167.04,5.52]
[1717215038186,11.0694,167.13,167.03,6.1182]
[1717215038187,5.52,167.09,167.03,6.1182]
[1717215038361,2.2146,167.07,167.03,6.1182]
[1717215038566,2.2146,167.07,167.04,5.52]
[1717215039281,2.2146,167.07,167.03,6.1182]
[1717215039471,2.2146,167.07,167.03,11.6382]
[1717215040089,2.2146,167.07,167.03,6.1182]
[1717215040275,2.2146,167.07,167.03,11.6382]
[1717215040916,2.215,167.04,167.03,6.1182]
[1717215041064,2.2148,167.06,167.03,6.1182]
[1717215041263,5.52,167.09,167.03,6.1182]
[1717215041566,2.2146,167.07,167.03,6.1182]
[1717215045789,2.2145,167.08,167.03,6.1182]
[1717215046085,2.2145,167.08,167.03,11.6382]
[1717215046584,2.2145,167.08,167.03,6.1182]
[1717215046787,2.2145,167.08,167.03,11.6382]
[1717215050785,2.2146,167.07,167.03,11.6382]
[1717215051980,2.2145,167.08,167.03,11.6382]
[1717215052197,2.2145,167.08,167.04,6.5633]
[1717215054595,2.58706157,167.11,166.99,21.8363]
[1717215054801,2.215,167.04,166.99,12.0833]
[1717215054977,5.52,167.05,166.99,12.0833]
[1717215055299,2.2151,167.03,166.99,6.5633]
[1717215056184,5.52,167.04,166.99,6.5633]
[1717215056185,2.2153,167.02,166.99,6.5633]
[1717215057476,5.52,167.04,166.99,6.5633]
[1717215057477,2.2152,167.03,166.99,6.5633]
[1717215060515,2.2154,167.01,166.97,6.6950612]
[1717215062295,2.2154,167.01,166.97,12.2150612]
[1717215062513,2.2153,167.02,166.97,12.2150612]
[1717215063200,2.2153,167.02,166.97,6.6950612]
[1717215063397,2.2153,167.02,166.98,21.5386]
[1717215063597,4.4296,167.06,166.99,6.3218]
[1717215063802,5.52,167.05,166.99,11.8418]
[1717215065018,2.2151,167.04,166.99,11.8418]
[1717215065220,2.2151,167.04,166.99,6.3218]
[1717215065924,2.2151,167.03,166.99,6.3218]
[1717215066121,2.2153,167.02,166.99,6.3218]
[1717215066307,2.2153,167.02,166.97,11.9735612]
[1717215067014,2.2153,167.02,166.98,6.3218]
[1717215070431,2.2152,167.03,166.99,6.3218]
[1717215071430,2.2152,167.03,166.98,6.3218]
[1717215071727,2.2152,167.03,167.0,6.3218]
[1717215077410,2.2152,167.03,166.99,5.52]
[1717215078025,2.2152,167.03,166.97,0.1317612]
[1717215078330,2.2154,167.01,166.97,0.1317612]
[1717215078631,2.2154,167.01,166.98,5.52]
[1717215080316,2.2153,167.02,166.98,5.52]
[1717215082441,2.2153,167.02,166.97,5.6517612]
[1717215084034,2.215,167.05,166.98,5.52]
[1717215084217,5.52,167.05,166.98,5.52]
[1717215084531,7.7351,167.04,166.98,5.52]
[1717215084931,2.2151,167.03,166.98,5.52]
[1717215086833,2.2151,167.03,166.97,0.1317612]
[1717215087134,2.2151,167.03,166.98,5.52]
[1717215087826,2.2151,167.03,166.97,0.1317612]
[1717215088033,2.2153,167.02,166.97,5.6517612]
[1717215089223,2.2153,167.02,166.97,0.1317612]
[1717215089634,7.7353,167.02,166.97,0.1317612]
[1717215089840,2.2154,167.01,166.97,0.1317612]
[1717215093341,2.2153,167.02,166.97,0.1317612]
[1717215093548,2.2153,167.02,166.97,5.6517612]
[1717215100956,2.2154,167.01,166.97,5.6517612]
[1717215101658,2.2153,167.02,166.97,5.6517612]
[1717215102763,2.2154,167.01,166.97,5.6517612]
[1717215103142,2.2154,167.01,166.97,0.1317612]
[1717215104343,15.5028,167.07,166.97,0.1317612]
[1717215104344,2.2155,167.0,166.97,0.1317612]
[1717215104854,2.2157,166.99,166.97,0.1317612]
[1717215106743,2.2158,166.98,166.97,0.1317612]
[1717215109141,7.7358,166.98,166.97,0.1317612]
[1717215114368,12.3374,166.98,166.97,0.1317612]
[1717215114664,12.5074,166.98,166.97,0.1317612]
[1717215117866,2.2164,166.94,166.87,24.14878403]
[1717215118071,2.2164,166.94,166.88,5.52]
[1717215118577,5.52,166.93,166.87,8.99508403]
[1717215118877,7.7366,166.92,166.86,15.45288403]
[1717215119172,2.2168,166.91,166.86,15.45288403]
[1717215121386,2.2168,166.91,166.86,15.4537251]
[1717215123374,2.2169,166.9,166.86,15.4537251]
[1717215123672,7.7369,166.9,166.86,6.4578]
[1717215123881,7.7369,166.9,166.85,8.9959251]
[1717215124364,2.217,166.89,166.85,8.9959251]
[1717215124781,7.7369,166.9,166.85,8.99631706]
[1717215127770,2.217,166.89,166.85,8.99631706]
[1717215131965,2.217,166.89,166.86,5.52]
[1717215132870,2.2169,166.9,166.86,5.52]
[1717215133070,2.2169,166.9,166.87,5.52]
[1717215133280,2.217,166.89,166.85,8.99631706]
[1717215133477,2.2171,166.89,166.86,5.52]
[1717215134968,2.2171,166.88,166.85,8.99631706]
[1717215135663,2.2171,166.88,166.86,5.52]
[1717215135881,2.217,166.9,166.86,5.52]
[1717215136785,2.217,166.9,166.85,8.99631706]
[1717215137090,2.217,166.9,166.86,5.52]
[1717215137292,2.217,166.9,166.85,8.99631706]
[1717215137468,2.217,166.9,166.86,5.52]
[1717215138680,2.217,166.89,166.85,8.99631706]
[1717215138878,2.217,166.89,166.85,14.51631706]
[1717215141195,2.217,166.89,166.86,5.52]
[1717215141486,2.217,166.89,166.88,5.52]
[1717215143495,11.0807,166.96,166.88,5.52]
[1717215143679,16.6007,166.96,166.9,5.52]
[1717215143976,2.2168,166.91,166.9,5.52]
[1717215144879,2.2168,166.91,166.89,5.52]
[1717215145082,2.2168,166.9,166.89,5.52]
[1717215145280,2.2168,166.9,166.88,5.52]
[1717215146801,2.2168,166.9,166.87,8.99631706]
[1717215146993,2.2168,166.9,166.88,5.52]
[1717215148494,2.2167,166.91,166.89,5.52]
[1717215148887,2.2166,166.92,166.89,5.52]
[1717215149291,2.2166,166.92,166.9,5.52]
[1717215149892,4.4324,166.95,166.9,5.52]
[1717215150098,4.4324,166.95,166.88,8.99631706]
[1717215150099,2.2167,166.91,166.89,5.52]
[1717215152200,2.2167,166.91,166.89,14.51631706]
[1717215153013,2.2167,166.91,166.89,8.99631706]
[1717215153214,2.2167,166.91,166.89,14.51631706]
[1717215153689,2.2168,166.9,166.89,8.99631706]
[1717215154189,2.2168,166.9,166.88,5.52]
[1717215154592,2.2168,166.9,166.87,5.52]
[1717215155302,2.2168,166.9,166.89,5.52]
[1717215155510,2.2168,166.9,166.88,5.52]
[1717215155711,2.2168,166.9,166.86,8.99631706]
[1717215155896,2.2168,166.9,166.88,5.52]
[1717215156499,4.4324,166.95,166.89,5.52]
[1717215156813,2.2166,166.93,166.91,5.52]
[1717215157385,2.2166,166.92,166.91,5.52]
[1717215158912,2.2166,166.92,166.9,5.52]
[1717215159289,2.2166,166.92,166.91,5.52]
[1717215172430,2.2166,166.92,166.85,90.17271706]
[1717215172616,2.2166,166.92,166.91,5.52]
[1717215172828,2.216,166.97,166.91,5.52]
[1717215173114,2.2162,166.95,166.94,5.52]
[1717215174022,2.2161,166.96,166.94,5.52]
[1717215178530,2.2164,166.94,166.92,5.52]
[1717215179032,2.2164,166.94,166.93,5.52]
[1717215179335,2.2164,166.94,166.89,6.2521]
[1717215179529,2.2164,166.94,166.92,5.52]
[1717215181339,2.2164,166.94,166.91,5.52]
[1717215182441,2.2162,166.95,166.92,5.52]
[1717215182625,2.2161,166.96,166.93,5.52]
[1717215184445,2.2161,166.96,166.89,6.2521]
[1717215188139,2.216,166.97,166.94,5.52]
[1717215188653,2.2161,166.96,166.94,5.52]
[1717215190055,2.2162,166.95,166.89,6.2521]
[1717215190230,2.2162,166.95,166.94,5.52]
[1717215190632,2.2162,166.95,166.89,6.2521]
[1717215190936,2.2163,166.94,166.92,5.52]
[1717215191322,2.2162,166.95,166.91,5.52]
[1717215191825,2.2164,166.94,166.89,6.2521]
[1717215192045,9.9517,166.98,166.89,6.2521]
[1717215192046,2.2162,166.95,166.89,6.2521]
[1717215194033,2.2161,166.96,166.89,6.2521]
[1717215201542,2.2161,166.96,166.93,5.52]
[1717215203737,2.2161,166.96,166.89,6.2521]
[1717215204054,2.2162,166.95,166.93,5.52]
[1717215206072,2.2162,166.95,166.89,6.2521]
[1717215206262,2.2162,166.95,166.93,5.52]
[1717215207251,2.2162,166.95,166.92,5.52]
[1717215208468,2.2162,166.95,166.93,5.52]
[1717215218268,2.2162,166.95,166.94,5.52]
[1717215219673,2.2162,166.95,166.92,6.1589]
[1717215219865,2.2162,166.95,166.94,5.52]
[1717215223072,2.2162,166.95,166.92,6.1589]
[1717215223267,2.2164,166.93,166.92,6.1589]
[1717215223452,2.2163,166.94,166.92,11.6789]
[1717215224574,2.2162,166.95,166.92,11.6789]
[1717215228274,2.2163,166.94,166.92,6.1589]
[1717215228606,4.432,166.97,166.92,11.6789]
[1717215228761,4.432,166.97,166.93,5.52]
[1717215228963,2.2163,166.95,166.93,5.52]
[1717215231783,2.2163,166.95,166.94,5.52]
[1717215233082,2.216,166.97,166.94,5.52]
[1717215233291,2.2159,166.98,166.95,5.52]
[1717215233588,2.2159,166.98,166.96,5.52]
[1717215239298,2.2159,166.97,166.9,6.4774]
[1717215239596,2.2159,166.97,166.94,5.52]
[1717215239772,2.2161,166.96,166.94,5.52]
[1717215240683,2.2161,166.96,166.93,5.52]
[1717215242200,2.2161,166.96,166.9,6.4774]
[1717215242401,2.2161,166.96,166.93,5.52]
[1717215247107,2.2161,166.96,166.9,6.4774]
[1717215247279,2.2161,166.96,166.94,5.52]
[1717215247487,2.2161,166.96,166.93,5.52]
[1717215248809,2.2161,166.96,166.9,6.4774]
[1717215249009,2.2161,166.96,166.93,5.52]
[1717215256314,2.2161,166.96,166.9,6.4774]
[1717215256611,2.2161,166.96,166.93,5.52]
[1717215257614,2.2159,166.97,166.93,5.52]
[1717215257822,2.2159,166.97,166.94,5.52]
[1717215258397,2.2159,166.97,166.9,6.4774]
[1717215258602,2.2159,166.97,166.94,5.52]
[1717215259519,2.2159,166.97,166.9,6.4774]
[1717215259712,2.2159,166.97,166.94,5.52]
[1717215260517,2.2159,166.97,166.95,5.52]
[1717215262717,2.2158,166.98,166.96,5.52]
[1717215262897,6.6451,167.04,166.97,5.52]
[1717215263211,0.17,167.03,166.98,5.52]
[1717215263409,2.2158,166.99,166.97,5.52]
[1717215271325,2.2158,166.98,166.97,5.52]
[1717215277711,2.2156,167.0,166.97,11.9989]
[1717215277907,2.2156,167.0,166.97,6.4789]
[1717215278112,2.2156,167.0,166.99,5.52]
[1717215281212,14.3798,167.05,166.99,5.52]
[1717215281213,8.8598,167.05,166.99,5.52]
[1717215281419,2.2154,167.01,166.97,6.4789]
[1717215281616,2.2154,167.01,167.0,5.52]
[1717215283219,2.2153,167.02,167.0,5.52]
[1717215283523,2.2153,167.02,167.01,5.52]
[1717215286051,4.4297,167.06,166.94,6.6026]
[1717215286052,2.2154,167.01,166.94,6.6026]
[1717215286342,2.2154,167.01,166.98,5.52]
[1717215291351,2.2153,167.02,166.98,5.52]
[1717215293153,2.2153,167.02,166.94,6.6026]
[1717215293335,2.2153,167.02,166.98,5.52]
[1717215296959,2.2153,167.02,166.94,6.6026]
[1717215297257,2.2153,167.02,166.98,5.52]
[1717215297431,5.52,167.05,166.98,12.1226]
[1717215297640,4.4297,167.06,167.0,5.52]
[1717215297961,2.2152,167.03,167.0,5.52]
[1717215300562,11.5594855,167.08,166.98,6.6026]
[1717215300747,2.2146,167.07,167.03,5.52]
[1717215300951,2.2146,167.07,167.04,5.52]
[1717215303357,2.2145,167.08,167.05,5.52]
[1717215304442,9.22826157,167.14,166.98,81.9988]
[1717215304443,23.24854181,167.16,167.01,6.6026]
[1717215304645,2.2144,167.09,167.06,5.52]
[1717215305233,2.2145,167.08,167.01,6.6026]
[1717215305440,2.2145,167.08,167.05,5.52]
[1717215306360,2.2145,167.08,167.06,5.52]
[1717215306855,2.2143,167.1,167.06,5.52]
[1717215307451,2.2144,167.09,167.06,5.52]
[1717215308662,2.2142,167.1,167.06,5.52]
[1717215310565,2.2142,167.1,167.07,5.52]
[1717215311361,2.2142,167.1,167.06,5.52]
[1717215312852,2.2143,167.09,167.01,6.6026]
[1717215313155,2.2143,167.09,167.06,5.52]
[1717215313754,2.2143,167.09,167.01,6.6026]
[1717215313939,2.2145,167.08,167.05,5.52]
[1717215314862,2.2145,167.08,167.01,6.6026]
[1717215315162,2.2145,167.08,167.05,5.52]
[1717215315663,2.58706157,167.1,167.05,5.52]
[1717215315846,2.2146,167.07,167.05,5.52]
[1717215317266,2.2148,167.06,167.01,6.6026]
[1717215317466,2.2148,167.06,167.03,5.52]
[1717215319372,2.2148,167.06,167.04,5.52]
[1717215320576,2.2148,167.06,167.01,6.6026]
[1717215320757,2.2148,167.06,167.04,5.52]
[1717215321255,2.2148,167.06,167.01,6.6026]
[1717215321457,2.2148,167.06,167.04,5.52]
[1717215321651,2.2148,167.06,167.03,5.52]
[1717215322282,2.2148,167.06,167.04,5.52]
[1717215323675,2.2148,167.06,167.01,6.6026]
[1717215323676,2.2144,167.09,167.05,5.52]
[1717215323854,2.2144,167.09,167.06,5.52]
[1717215324473,2.2145,167.08,167.06,5.52]
[1717215338301,2.2145,167.08,167.07,5.52]
[1717215339900,4.4279,167.12,167.07,5.52]
[1717215341002,4.4279,167.12,167.08,5.52]
[1717215341395,2.2143,167.09,167.05,6.3602]
[1717215341702,2.2143,167.09,167.06,6.3602]
[1717215342296,2.2143,167.09,167.08,5.52]
[1717215346097,2.2142,167.1,167.08,5.52]
[1717215346691,2.2143,167.09,167.08,5.52]
[1717215352812,2.2143,167.09,167.06,6.3602]
[1717215355514,2.2142,167.1,167.06,6.3602]
[1717215355694,2.2142,167.1,167.09,5.52]
[1717215357510,2.2142,167.1,167.06,6.3602]
[1717215357716,2.2142,167.1,167.08,5.52]
[1717215361016,2.2143,167.09,167.08,5.52]
[1717215361317,15.4947,167.16,167.02,6.1907]
[1717215361318,2.2145,167.08,167.02,6.1907]
[1717215361522,2.2146,167.07,167.05,5.52]
[1717215362412,2.2146,167.07,167.02,6.1907]
[1717215362912,2.2146,167.07,167.0,15.1732]
[1717215363111,2.2147,167.06,167.0,15.1732]
[1717215363619,2.2149,167.05,167.02,5.52]
[1717215363799,2.215,167.04,167.02,5.52]
[1717215363997,2.215,167.04,166.98,6.1907]
[1717215364533,2.215,167.04,167.01,5.52]
[1717215370729,2.215,167.04,167.02,5.52]
[1717215370933,2.215,167.04,166.98,6.1907]
[1717215371251,2.215,167.04,167.02,5.52]
[1717215371814,2.215,167.04,167.01,5.52]
[1717215374833,2.58706157,167.03,166.93,15.18380648]
[1717215375125,2.2156,167.0,166.98,5.52]
[1717215375304,2.2156,167.0,166.97,5.52]
[1717215375726,2.2156,167.0,166.93,6.1907]
[1717215375937,2.2157,166.99,166.97,5.52]
[1717215377219,2.2157,166.99,166.93,15.18380648]
[1717215377425,2.2157,166.99,166.97,5.52]
[1717215378114,8.10706157,167.03,166.97,5.52]
[1717215378115,2.2156,167.0,166.97,5.52]
[1717215378437,2.2156,167.0,166.98,5.52]
[1717215378610,2.2156,167.0,166.93,6.1907]
[1717215378812,2.2156,167.0,166.98,5.52]
[1717215380318,2.2157,166.99,166.93,6.1907]
[1717215380643,2.2157,166.99,166.97,5.52]
[1717215381446,2.2157,166.99,166.93,6.1907]
[1717215381741,2.2157,166.99,166.97,5.52]
[1717215386547,2.2157,166.99,166.96,5.52]
[1717215387427,2.2157,166.99,166.93,6.1907]
[1717215387635,2.2157,166.99,166.97,5.52]
[1717215389658,7.01716157,167.04,166.96,5.52]
[1717215389659,2.2158,166.98,166.96,5.52]
[1717215396075,2.2158,166.98,166.93,6.1907]
[1717215396371,2.2158,166.98,166.96,5.52]
[1717215399278,2.2159,166.97,166.96,5.52]
[1717215399583,2.2159,166.97,166.95,5.52]
[1717215400259,2.2159,166.97,166.9,8.99390937]
[1717215400455,2.2159,166.97,166.94,5.52]
[1717215400657,2.2161,166.96,166.94,5.52]
[1717215402482,2.2161,166.96,166.89,15.31450937]
[1717215402776,2.2163,166.95,166.94,5.52]
[1717215402988,2.2163,166.95,166.92,5.52]
[1717215403170,2.2163,166.94,166.92,5.52]
[1717215403364,2.2163,166.94,166.9,5.52]
[1717215403783,0.17,166.95,166.88,8.99390937]
[1717215404083,2.2166,166.92,166.9,5.52]
[1717215404268,2.2166,166.92,166.89,5.52]
[1717215404465,2.2166,166.92,166.91,5.52]
[1717215407082,2.2165,166.93,166.91,5.52]
[1717215407389,2.2163,166.94,166.92,5.52]
[1717215407571,2.2163,166.94,166.93,5.52]
[1717215407966,4.4321,166.97,166.87,8.99653399]
[1717215408182,2.2167,166.92,166.89,5.52]
[1717215410789,2.2167,166.92,166.86,8.99653399]
[1717215411096,2.2167,166.91,166.89,5.52]
[1717215413990,2.2167,166.91,166.86,8.99653399]
[1717215414193,2.2167,166.91,166.89,5.52]
[1717215415586,2.2167,166.91,166.88,5.52]
[1717215421081,2.2169,166.9,166.88,5.52]
[1717215422291,2.2169,166.9,166.86,8.99653399]
[1717215422474,2.2169,166.9,166.87,5.52]
[1717215423897,2.2169,166.9,166.86,8.99653399]
[1717215424199,2.2169,166.9,166.87,5.52]
[1717215424815,2.2169,166.9,166.86,8.99653399]
[1717215425105,2.2169,166.9,166.87,5.52]
[1717215427696,2.2169,166.9,166.85,8.99653399]
[1717215427901,2.2169,166.9,166.87,5.52]
[1717215430207,2.2169,166.9,166.85,8.99653399]
[1717215430781,2.2169,166.9,166.87,5.52]
[1717215431910,2.2167,166.91,166.87,5.52]
[1717215433509,9.953,166.93,166.85,8.99653399]
[1717215433805,2.2169,166.9,166.85,8.99653399]
[1717215434303,2.2169,166.9,166.86,5.52]
[1717215434502,2.2169,166.9,166.85,8.99653399]
[1717215434711,2.2169,166.9,166.86,5.52]
[1717215434887,2.217,166.89,166.86,5.52]
[1717215435208,2.217,166.89,166.85,8.99653399]
[1717215435497,2.2168,166.91,166.86,5.52]
[1717215437287,2.2169,166.9,166.86,5.52]
[1717215439299,2.2169,166.9,166.85,8.99653399]
[1717215439613,2.2169,166.9,166.86,5.52]
[1717215441307,2.217,166.89,166.85,8.99653399]
[1717215441504,2.217,166.89,166.85,14.51653399]
[1717215441901,2.217,166.89,166.85,8.99653399]
[1717215442101,2.217,166.89,166.85,14.51653399]
[1717215442500,2.217,166.89,166.85,8.99653399]
[1717215442681,2.217,166.89,166.85,14.51653399]
[1717215443095,2.217,166.89,166.85,8.99653399]
[1717215443414,2.217,166.89,166.85,14.51653399]
[1717215444495,2.217,166.89,166.86,8.99653399]
[1717215445913,2.2169,166.9,166.86,8.99653399]
[1717215447815,2.217,166.89,166.86,8.99653399]
[1717215448512,2.2169,166.9,166.86,8.99653399]
[1717215449017,2.217,166.89,166.86,8.99653399]
[1717215451912,2.217,166.89,166.87,8.99653399]
[1717215452100,2.2169,166.9,166.87,8.99653399]
[1717215456109,2.217,166.89,166.87,8.99653399]
[1717215456709,2.2169,166.9,166.87,8.99653399]
[1717215457909,2.2169,166.9,166.86,5.52]
[1717215458114,2.2169,166.9,166.85,5.52]
[1717215458308,2.2169,166.9,166.86,5.69633513]
[1717215458514,2.2169,166.9,166.85,11.9332]
[1717215458719,2.2169,166.9,166.86,5.69633513]
[1717215459109,2.2169,166.9,166.85,11.9332]
[1717215459304,2.2169,166.9,166.86,5.69633513]
[1717215459617,2.2169,166.9,166.85,11.9332]
[1717215459812,2.2169,166.9,166.86,5.69633513]
[1717215460218,2.2169,166.9,166.85,11.9332]
[1717215460419,2.2169,166.9,166.86,5.69633513]
[1717215460924,2.2169,166.9,166.85,11.9332]
[1717215461132,2.2169,166.9,166.86,5.69629971]
[1717215461513,2.2169,166.9,166.85,11.9332]
[1717215461829,2.2169,166.9,166.86,5.69629971]
[1717215462030,2.2169,166.9,166.85,11.9332]
[1717215462227,2.2169,166.9,166.86,5.69629528]
[1717215462527,2.2169,166.9,166.85,11.9332]
[1717215462824,2.2169,166.9,166.86,5.69630296]
[1717215463007,2.2169,166.9,166.85,11.9332]
[1717215463210,2.2169,166.9,166.86,5.69629971]
[1717215463528,2.2169,166.9,166.85,11.9332]
[1717215463829,2.2169,166.9,166.86,5.69629971]
[1717215464133,2.2169,166.9,166.85,11.9332]
[1717215464313,2.2169,166.9,166.86,5.69629971]
[1717215464517,2.2169,166.9,166.85,11.9332]
[1717215464812,2.2169,166.9,166.86,5.69629971]
[1717215465024,2.2169,166.9,166.85,11.9332]
[1717215465333,2.217,166.89,166.86,5.69630023]
[1717215465631,2.217,166.89,166.85,11.9332]
[1717215465831,2.217,166.89,166.86,5.69630089]
[1717215466131,2.217,166.89,166.85,11.9332]
[1717215466332,2.217,166.89,166.86,5.6963186]
[1717215466624,2.217,166.89,166.85,11.9332]
[1717215466810,2.217,166.89,166.86,5.69633631]
[1717215467010,2.217,166.89,166.85,11.9332]
[1717215467212,2.217,166.89,166.86,5.69633631]
[1717215467412,2.217,166.89,166.85,11.9332]
[1717215467633,2.217,166.89,166.86,5.69634074]